Workbook

Sheet Mittelhilfstabelle
A2: Stunde | B2: Wind | C2: Luftfeuchtigkeit | D2: Luftdruck | E2: Taupunkttemperatur | F2: Bewölkung | H2: Stunde | I2: Wind | J2: Luftfeuchtigkeit | K2: Luftdruck | L2: Taupunkttemperatur | M2: Bewölkung
A3: 00 | B3: 1 | C3: 90 | D3: 1024.6 | E3: 10.4 | F3: 7 | H3: 00 | I3: 0 | J3: 95 | K3: 1024.1 | L3: 12.6 | M3: 1
A4: 01 | B4: 1 | C4: 94 | D4: 1025.3 | E4: 9.7 | F4: 6 | H4: 01 | I4: 1 | J4: 96 | K4: 1024.1 | L4: 12.5 | M4: 4
A5: 02 | B5: 1 | C5: 96 | D5: 1025.1 | E5: 9.8 | F5: 4 | H5: 02 | I5: 0 | J5: 96 | K5: 1023.9 | L5: 12.3 | M5: 4
A6: 03 | B6: 1 | C6: 97 | D6: 1024.8 | E6: 9.6 | F6: 1 | H6: 03 | I6: 0 | J6: 97 | K6: 1023.9 | L6: 12.3 | M6: 6
A7: 04 | B7: 1 | C7: 95 | D7: 1024.7 | E7: 9.3 | F7: 1 | H7: 04 | I7: 0 | J7: 96 | K7: 1024 | L7: 12.3 | M7: 7
A8: 05 | B8: 0 | C8: 97 | D8: 1024.8 | E8: 9.3 | F8: 1 | H8: 05 | I8: 0 | J8: 96 | K8: 1024 | L8: 12.2 | M8: 8
A9: 06 | B9: 0 | C9: 97 | D9: 1024.8 | E9: 9.1 | F9: 3 | H9: 06 | I9: 0 | J9: 96 | K9: 1024 | L9: 12.4 | M9: 8
A10: 07 | B10: 0 | C10: 98 | D10: 1025.2 | E10: 9.6 | F10: 7 | H10: 07 | I10: 0 | J10: 97 | K10: 1024.1 | L10: 12.6 | M10: 7
A11: 08 | B11: 1 | C11: 97 | D11: 1025.3 | E11: 11 | F11: 7 | H11: 08 | I11: 0 | J11: 96 | K11: 1024.5 | L11: 13.3 | M11: 7
A12: 09 | B12: 1 | C12: 93 | D12: 1025.6 | E12: 12.9 | F12: 7 | H12: 09 | I12: 1 | J12: 95 | K12: 1024.4 | L12: 14.2 | M12: 7
A13: 10 | B13: 1 | C13: 86 | D13: 1025.2 | E13: 14.8 | F13: 6 | H13: 10 | I13: 0 | J13: 90 | K13: 1024.4 | L13: 15 | M13: 7
A14: 11 | B14: 1 | C14: 81 | D14: 1024.9 | E14: 16 | F14: 5 | H14: 11 | I14: 0 | J14: 91 | K14: 1024.4 | L14: 15.8 | M14: 7
A15: 12 | B15: 1 | C15: 77 | D15: 1024.4 | E15: 16.8 | F15: 3 | H15: 12 | I15: 1 | J15: 85 | K15: 1024.7 | L15: 15.5 | M15: 8
A16: 13 | B16: 1 | C16: 71 | D16: 1024 | E16: 16.9 | F16: 3 | H16: 13 | I16: 1 | J16: 82 | K16: 1024.6 | L16: 15.8 | M16: 7
A17: 14 | B17: 2 | C17: 72 | D17: 1023.6 | E17: 17.1 | F17: 4 | H17: 14 | I17: 1 | J17: 81 | K17: 1024.6 | L17: 15.7 | M17: 7
A18: 15 | B18: 2 | C18: 71 | D18: 1023.4 | E18: 16.4 | F18: 4 | H18: 15 | I18: 1 | J18: 78 | K18: 1024.4 | L18: 15.5 | M18: 7
A19: 16 | B19: 2 | C19: 78 | D19: 1023.1 | E19: 16.9 | F19: 4 | H19: 16 | I19: 1 | J19: 83 | K19: 1024.5 | L19: 15.6 | M19: 7
A20: 17 | B20: 1 | C20: 82 | D20: 1023.1 | E20: 16.3 | F20: 3 | H20: 17 | I20: 1 | J20: 85 | K20: 1024.7 | L20: 15.4 | M20: 7
A21: 18 | B21: 0 | C21: 89 | D21: 1023.2 | E21: 16 | F21: 3 | H21: 18 | I21: 1 | J21: 88 | K21: 1024.9 | L21: 15.1 | M21: 7
A22: 19 | B22: 0 | C22: 84 | D22: 1023.6 | E22: 14.2 | F22: 5 | H22: 19 | I22: 1 | J22: 90 | K22: 1025.1 | L22: 14.9 | M22: 7
A23: 20 | B23: 0 | C23: 87 | D23: 1023.7 | E23: 14 | F23: 6 | H23: 20 | I23: 1 | J23: 91 | K23: 1025.3 | L23: 14.8 | M23: 8
A24: 21 | B24: 0 | C24: 90 | D24: 1023.9 | E24: 13.6 | F24: 4 | H24: 21 | I24: 1 | J24: 94 | K24: 1025.4 | L24: 14.4 | M24: 8
A25: 22 | B25: 1 | C25: 93 | D25: 1024.2 | E25: 13.1 | F25: 2 | H25: 22 | I25: 1 | J25: 94 | K25: 1025.5 | L25: 14.4 | M25: 8
A26: 23 | B26: 0 | C26: 94 | D26: 1024.3 | E26: 12.9 | F26: 2 | H26: 23 | I26: 1 | J26: 95 | K26: 1025.4 | L26: 14.3 | M26: 8
A27: Mittel | B27: =ROUND(AVERAGE(B3:B26),1) -> 0.8 | C27: =ROUND(AVERAGE(C3:C26),1) -> 87.9 | D27: =ROUND(AVERAGE(D3:D26),1) -> 1024.4 | E27: =AVERAGE(E3:E26) -> 13.15416667 | F27: =ROUND(AVERAGE(F3:F26),1) -> 4.1 | H27: Mittel | I27: =ROUND(AVERAGE(I3:I26),1) -> 0.6 | J27: =ROUND(AVERAGE(J3:J26),1) -> 91.1 | K27: =ROUND(AVERAGE(K3:K26),1) -> 1024.5 | L27: =AVERAGE(L3:L26) -> 14.12083333 | M27: =ROUND(AVERAGE(M3:M26),1) -> 6.8
E29: 2014-09-29 | L29: 2014-09-30
A32: Stunde | B32: Wind | C32: Luftfeuchtigkeit | D32: Luftdruck | E32: Taupunkttemperatur | F32: Bewölkung | H32: Stunde | I32: Wind | J32: Luftfeuchtigkeit | K32: Luftdruck | L32: Taupunkttemperatur | M32: Bewölkung
A33: 00 | B33: 2 | C33: 97 | D33: 1024 | E33: 13.4 | F33: 8 | H33: 00 | I33: 1 | J33: 97 | K33: 1029.1 | L33: 8.3 | M33: 0
A34: 01 | B34: 2 | C34: 97 | D34: 1024.5 | E34: 13.5 | F34: 8 | H34: 01 | I34: 1 | J34: 98 | K34: 1029.4 | L34: 8 | M34: 0
A35: 02 | B35: 1 | C35: 96 | D35: 1024.6 | E35: 13.1 | F35: 8 | H35: 02 | I35: 0 | J35: 98 | K35: 1029.1 | L35: 7.4 | M35: 0
A36: 03 | B36: 1 | C36: 98 | D36: 1024.7 | E36: 13.2 | F36: 8 | H36: 03 | I36: 0 | J36: 98 | K36: 1028.9 | L36: 6.9 | M36: 0
A37: 04 | B37: 2 | C37: 96 | D37: 1025.1 | E37: 13.2 | F37: 8 | H37: 04 | I37: 0 | J37: 98 | K37: 1028.6 | L37: 6.8 | M37: 0
A38: 05 | B38: 2 | C38: 96 | D38: 1025.7 | E38: 13.1 | F38: 8 | H38: 05 | I38: 0 | J38: 98 | K38: 1028.2 | L38: 6.6 | M38: 0
A39: 06 | B39: 1 | C39: 96 | D39: 1025.9 | E39: 12.9 | F39: 8 | H39: 06 | I39: 0 | J39: 98 | K39: 1028.4 | L39: 6.4 | M39: 0
A40: 07 | B40: 1 | C40: 96 | D40: 1026.8 | E40: 13 | F40: 8 | H40: 07 | I40: 0 | J40: 99 | K40: 1028.4 | L40: 6.9 | M40: 0
A41: 08 | B41: 2 | C41: 95 | D41: 1027.6 | E41: 13 | F41: 7 | H41: 08 | I41: 0 | J41: 99 | K41: 1028.6 | L41: 8.3 | M41: 2
A42: 09 | B42: 1 | C42: 93 | D42: 1028.1 | E42: 13.1 | F42: 7 | H42: 09 | I42: 1 | J42: 99 | K42: 1028.9 | L42: 10.3 | M42: 4
A43: 10 | B43: 2 | C43: 88 | D43: 1028.3 | E43: 13.6 | F43: 6 | H43: 10 | I43: 1 | J43: 91 | K43: 1028.8 | L43: 12.3 | M43: 4
A44: 11 | B44: 2 | C44: 83 | D44: 1028.7 | E44: 13 | F44: 5 | H44: 11 | I44: 1 | J44: 81 | K44: 1028.2 | L44: 14.4 | M44: 4
A45: 12 | B45: 2 | C45: 75 | D45: 1028.7 | E45: 12.8 | F45: 5 | H45: 12 | I45: 1 | J45: 75 | K45: 1027.9 | L45: 14.6 | M45: 4
A46: 13 | B46: 2 | C46: 74 | D46: 1028.5 | E46: 12.8 | F46: 4 | H46: 13 | I46: 2 | J46: 68 | K46: 1026.9 | L46: 13.6 | M46: 5
A47: 14 | B47: 2 | C47: 68 | D47: 1028.2 | E47: 11.7 | F47: 3 | H47: 14 | I47: 2 | J47: 66 | K47: 1026.5 | L47: 13.2 | M47: 6
A48: 15 | B48: 2 | C48: 70 | D48: 1028.1 | E48: 12.2 | F48: 3 | H48: 15 | I48: 2 | J48: 68 | K48: 1026.1 | L48: 12.5 | M48: 7
A49: 16 | B49: 2 | C49: 72 | D49: 1028 | E49: 11.6 | F49: 2 | H49: 16 | I49: 2 | J49: 71 | K49: 1025.6 | L49: 12.6 | M49: 7
A50: 17 | B50: 1 | C50: 74 | D50: 1028 | E50: 11.3 | F50: 1 | H50: 17 | I50: 2 | J50: 82 | K50: 1025.4 | L50: 12.8 | M50: 7
A51: 18 | B51: 1 | C51: 83 | D51: 1028 | E51: 11.4 | F51: 0 | H51: 18 | I51: 2 | J51: 84 | K51: 1025.3 | L51: 12.2 | M51: 6
A52: 19 | B52: 1 | C52: 89 | D52: 1028.2 | E52: 10.8 | F52: 1 | H52: 19 | I52: 2 | J52: 91 | K52: 1025.2 | L52: 11.2 | M52: 6
A53: 20 | B53: 2 | C53: 93 | D53: 1028.6 | E53: 10.3 | F53: 0 | H53: 20 | I53: 1 | J53: 88 | K53: 1025.6 | L53: 10.7 | M53: 5
A54: 21 | B54: 2 | C54: 95 | D54: 1028.9 | E54: 9.8 | F54: 0 | H54: 21 | I54: 1 | J54: 90 | K54: 1025.7 | L54: 11 | M54: 7
A55: 22 | B55: 0 | C55: 95 | D55: 1029.2 | E55: 9.1 | F55: 1 | H55: 22 | I55: 1 | J55: 90 | K55: 1025.8 | L55: 10.6 | M55: 7
A56: 23 | B56: 0 | C56: 97 | D56: 1029.3 | E56: 8.6 | F56: 1 | H56: 23 | I56: 1 | J56: 86 | K56: 1025.2 | L56: 10.6 | M56: 7
A57: Mittel | B57: =ROUND(AVERAGE(B33:B56),1) -> 1.5 | C57: =ROUND(AVERAGE(C33:C56),1) -> 88.2 | D57: =ROUND(AVERAGE(D33:D56),1) -> 1027.3 | E57: =ROUND(AVERAGE(E33:E56),1) -> 12.1 | F57: =ROUND(AVERAGE(F33:F56),1) -> 4.6 | H57: Mittel | I57: =ROUND(AVERAGE(I33:I56),1) -> 1 | J57: =ROUND(AVERAGE(J33:J56),1) -> 88 | K57: =ROUND(AVERAGE(K33:K56),1) -> 1027.3 | L57: =ROUND(AVERAGE(L33:L56),1) -> 10.3 | M57: =ROUND(AVERAGE(M33:M56),1) -> 3.7
E59: 2014-09-27 | L59: 2014-09-28

Sheet Kurztabelle
A2: Wetterwarte: Köttewitz | L2: Monat: | M2: September | R2: Jahr: | U2: 2014
A4: Dat. | B4: TTT | C4: TxTx | D4: TnTn | E4: Tg | F4: Umin. | G4: UU | H4: NN | I4: RRRR | J4: Art | L4: sss | M4: PPPP | N4: eee | O4: fff | R4: Tage mit | V4: fk | W4: Summe
J5: * | O5: Bft | P5: SS | Q5: Art ( D ) | R5: RR | S5: Ge | T5: Bf6 | U5: Bf8 | V5: Bft | W5: Gewitter
A6: 01. | B6: 13.9 | C6: 16 | D6: 12.8 | E6: - | F6: 82 | G6: 91 | H6: 8 | I6: 3.3 | J6: R | L6: . | M6: 1017 | N6: 12.5 | O6: 1 | R6: 1 | V6: 4 | AA6: max >=30,0°C | AB6: max >=25,0°C | AC6: max <0,0°C | AE6: RR >=0,1 mm | AF6: RR >=1,0 mm | AG6: RR >=3,0 mm | AH6: RR >=10,0 mm | AI6: RR >=20,0 mm
A7: 02. | B7: 13.1 | C7: 13.9 | D7: 11.8 | E7: - | F7: 97 | G7: 98 | H7: 8 | I7: 4.2 | J7: R | L7: . | M7: 1020.4 | N7: 12.9 | O7: 1 | R7: 1 | V7: 3 | AA7: =COUNTIF(C6:C15,">=30") -> 0 | AB7: =COUNTIF(C6:C15,">=25") -> 2 | AC7: =COUNTIF(C6:C15,"<0") -> 0 | AE7: =COUNTIF(I6:I15,">=0,1") -> 5 | AF7: =COUNTIF(I6:I15,">=1") -> 4 | AG7: =COUNTIF(I6:I15,">=3") -> 3 | AH7: =COUNTIF(I6:I15,">=10") -> 0 | AI7: =COUNTIF(I6:I15,">=20") -> 0
A8: 03. | B8: 14 | C8: 17.6 | D8: 11.6 | E8: - | F8: 83 | G8: 93 | H8: 6.6 | I8: . | L8: . | M8: 1023.4 | N8: 12.8 | O8: 1 | V8: 4 | AA8: =COUNTIF(C18:C27,">=30") -> 0 | AB8: =COUNTIF(C18:C27,">=25") -> 0 | AC8: =COUNTIF(C18:C27,"<0") -> 0 | AE8: =COUNTIF(I18:I27,">=0,1") -> 6 | AF8: =COUNTIF(I18:I27,">=1") -> 6 | AG8: =COUNTIF(I18:I27,">=3") -> 5 | AH8: =COUNTIF(I18:I27,">=10") -> 3 | AI8: =COUNTIF(I18:I27,">=20") -> 2
A9: 04. | B9: 15.7 | C9: 21.3 | D9: 10.8 | E9: - | F9: 77 | G9: 92 | H9: 4 | I9: . | L9: 0.7 | M9: 1020.9 | N9: 14.3 | O9: 1 | V9: 3 | AA9: =COUNTIF(C30:C39,">=30") -> 0 | AB9: =COUNTIF(C30:C39,">=25") -> 0 | AC9: =COUNTIF(C30:C39,"<0") -> 0 | AE9: =COUNTIF(I30:I39,">=0,1") -> 6 | AF9: =COUNTIF(I30:I39,">=1") -> 4 | AG9: =COUNTIF(I30:I39,">=3") -> 4 | AH9: =COUNTIF(I30:I39,">=10") -> 0 | AI9: =COUNTIF(I30:I39,">=20") -> 0
A10: 05. | B10: 19 | C10: 27.1 | D10: 12.3 | E10: - | F10: 49 | G10: 84 | H10: 2.4 | I10: . | L10: 8.2 | M10: 1015.6 | N10: 15.7 | O10: 1 | V10: 3
A11: 06. | B11: 19.8 | C11: 27.2 | D11: 14.2 | E11: - | F11: 52 | G11: 80 | H11: 4.4 | I11: . | L11: 6.8 | M11: 1012.6 | N11: 16.1 | O11: 1 | S11: 1 | V11: 3 | AA11: min <0,0°C | AB11: min <0-10,0°C | AE11: rel.Lf. 14h >=70% | AG11: rel.Lf. 14h <=40%
A12: 07. | B12: 17.6 | C12: 23.7 | D12: 13.9 | E12: - | F12: 67 | G12: 88 | H12: 3.3 | I12: 0.2 | J12: R | L12: 4.2 | M12: 1013.4 | N12: 15.6 | O12: 1 | R12: 1 | S12: 1 | V12: 4 | W12: 2 | AA12: =COUNTIF(D6:D15,"<0") -> 0 | AB12: =COUNTIF(D6:D15,"<=-10") -> 0 | AE12: =COUNTIF(F6:F15,">=70") -> 5 | AG12: =COUNTIF(F6:F15,"<=40") -> 0
A13: 08. | B13: 17.5 | C13: 21 | D13: 14.5 | E13: - | F13: 81 | G13: 93 | H13: 7.3 | I13: 9 | J13: R | L13: 0.2 | M13: 1016.1 | N13: 16.3 | O13: 1 | R13: 1 | S13: 1 | V13: 3 | AA13: =COUNTIF(D18:D27,"<0") -> 0 | AB13: =COUNTIF(D18:D27,"<=-10") -> 0 | AE13: =COUNTIF(F18:F27,">=70") -> 6 | AG13: =COUNTIF(F18:F27,"<=40") -> 0
A14: 09. | B14: 16 | C14: 18.9 | D14: 12.5 | E14: - | F14: 60 | G14: 81 | H14: 6.1 | I14: . | L14: 2.4 | M14: 1017.5 | N14: 12.7 | O14: 1 | V14: 3 | AA14: =COUNTIF(D30:D39,"<0") -> 0 | AB14: =COUNTIF(D30:D39,"<=-10") -> 0 | AE14: =COUNTIF(F30:F39,">=70") -> 6 | AG14: =COUNTIF(F30:F39,"<=40") -> 0
A15: 10. | B15: 14.3 | C15: 17.6 | D15: 12.4 | E15: - | F15: 63 | G15: 83 | H15: 7.5 | I15: 2.9 | J15: R | L15: 0.6 | M15: 1016.8 | N15: 11.3 | O15: 1 | R15: 1 | V15: 3
A16: Su | B16: =SUM(B6:B15) -> 160.9 | C16: =SUM(C6:C15) -> 204.3 | D16: 126.8 | E16: 0 | F16: XXX | G16: XXX | H16: =SUM(H6:H15) -> 57.6 | I16: =SUM(I6:I15) -> 19.6 | J16: XX | L16: =SUM(L6:L15) -> 23.1 | M16: =SUM(M6:M15) -> 10173.7 | N16: 140.2 | O16: 10 | P16: =SUM(P6:P15) -> 0 | Q16: X | R16: =SUM(R6:R15) -> 5 | S16: =SUM(S6:S15) -> 3 | T16: 0 | U16: 0 | V16: XXX | AA16: ohne Sonne | AB16: Son. 0,1-0,9 | AC16: Son. >=10,0 | AE16: Sch. >=1 cm | AF16: Sch. >=3 cm | AG16: Sch. >=10 cm
A17: Mi | B17: =AVERAGE(B6:B15) -> 16.09 | C17: =AVERAGE(C6:C15) -> 20.43 | D17: 12.68 | F17: XXX | G17: 88.3 | H17: 5.76 | I17: XXX | J17: XX | L17: =L16/10 -> 2.31 | M17: =AVERAGE(M6:M15) -> 1017.37 | N17: =AVERAGE(N6:N15) -> 14.02 | O17: 1 | P17: =ROUND(AVERAGE(P6:P15),1) ->  | Q17: X | R17: XX | S17: XX | T17: XX | U17: XX | V17: =AVERAGE(V6:V15) -> 3.3 | AA17: =COUNTIF(L6:L15,".") -> 3 | AB17: =COUNTIF(L6:L15,"<1") -> 3 | AC17: =COUNTIF(L6:L15,">=10") -> 0 | AE17: =COUNTIF(P6:P15,">=1") -> 0 | AF17: =COUNTIF(P6:P15,">=3") -> 0 | AG17: =COUNTIF(P6:P15,">=10") -> 0
A18: 11. | B18: 14 | C18: 18.3 | D18: 11.4 | E18: - | F18: 71 | G18: 91 | H18: 7.4 | I18: 16.6 | J18: R | L18: 0.9 | M18: 1016 | N18: 13.2 | O18: 1 | R18: 1 | V18: 4 | AA18: =COUNTIF(L18:L27,".") -> 2 | AB18: =COUNTIF(L18:L27,"<1") -> 2 | AC18: =COUNTIF(L18:L27,">=10") -> 0 | AE18: =COUNTIF(P18:P27,">=1") -> 0 | AF18: =COUNTIF(P18:P27,">=3") -> 0 | AG18: =COUNTIF(P18:P27,">=10") -> 0
A19: 12. | B19: 15.1 | C19: 16.7 | D19: 13 | E19: - | F19: 98 | G19: 99 | H19: 8 | I19: 4.9 | J19: R | L19: . | M19: 1015.2 | N19: 14.9 | O19: 1 | R19: 1 | V19: 4 | AA19: =COUNTIF(L30:L39,".") -> 2 | AB19: =COUNTIF(L30:L39,"<1") -> 3 | AC19: =COUNTIF(L30:L39,">=10") -> 0 | AE19: =COUNTIF(P30:P39,">=1") -> 0 | AF19: =COUNTIF(P30:P39,">=3") -> 0 | AG19: =COUNTIF(P30:P39,">=10") -> 0
A20: 13. | B20: 16.6 | C20: 18.4 | D20: 15.7 | E20: - | F20: 93 | G20: 98 | H20: 7.8 | I20: 9.6 | J20: R | L20: 0.2 | M20: 1019.2 | N20: 16.3 | O20: 1 | R20: 1 | V20: 3
A21: 14. | B21: 15.8 | C21: 16.5 | D21: 14.9 | E21: - | F21: 99 | G21: 100 | H21: 8 | I21: 2.4 | J21: R | L21: . | M21: 1018.6 | N21: 15.7 | O21: 1 | R21: 1 | V21: 3 | AA21: Max TT | AB21: Max TxTx | AC21: Min TgTg | AE21: Max RR
A22: 15. | B22: 18.2 | C22: 23.6 | D22: 15.5 | E22: - | F22: 73 | G22: 91 | H22: 5.6 | I22: . | L22: 4.4 | M22: 1018 | N22: 16.7 | O22: 1 | V22: 3 | AA22: =MAX(B6:B15,B18:B27,B30:B39) -> 19.8 | AB22: =MAX(C6:C15,C18:C27,C30:C39) -> 27.2 | AC22: =MIN(E6:E15,E18:E27,E30:E39) -> 0 | AE22: =MAX(I6:I15,I18:I27,I30:I39) -> 34.2
A23: 16. | B23: 17.9 | C23: 23.7 | D23: 13.9 | E23: - | F23: 63 | G23: 85 | H23: 5.1 | I23: . | L23: 4.9 | M23: 1017.9 | N23: 15.2 | O23: 1 | V23: 4 | AA23: Min TT | AB23: Min TnTn | AC23: Min U14 | AE23: Max SS
A24: 17. | B24: 17.1 | C24: 23.2 | D24: 12.5 | E24: - | F24: 55 | G24: 80 | H24: 0.3 | I24: . | L24: 6.3 | M24: 1016.3 | N24: 13.4 | O24: 2 | V24: 5 | AA24: =MIN(B6:B15,B18:B27,B30:B39) -> 9.2 | AB24: =MIN(D6:D15,D18:D27,D30:D39) -> 3.1 | AC24: =MIN(F6:F15,F18:F27,F30:F39) -> 49 | AE24: =MAX(P6:P15,P18:P27,P30:P39) -> 0
A25: 18. | B25: 16.8 | C25: 21.2 | D25: 12.6 | E25: - | F25: 61 | G25: 79 | H25: 3.8 | I25: . | L25: 3.8 | M25: 1014.7 | N25: 13 | O25: 2 | V25: 5
A26: 19. | B26: 16.8 | C26: 23.9 | D26: 12.5 | E26: - | F26: 64 | G26: 86 | H26: 6.4 | I26: 23.2 | J26: R | L26: 2.3 | M26: 1014 | N26: 14.4 | O26: 2 | R26: 1 | S26: 1 | V26: 4
A27: 20. | B27: 16.6 | C27: 21 | D27: 14.5 | E27: - | F27: 85 | G27: 97 | H27: 6.9 | I27: 34.2 | J27: R | L27: 1.8 | M27: 1013.4 | N27: 16.2 | O27: 1 | R27: 1 | S27: 1 | V27: 4 | W27: 3
A28: Su | B28: =SUM(B18:B27) -> 164.9 | C28: =SUM(C18:C27) -> 206.5 | D28: 136.5 | E28: 0 | F28: XXX | G28: XXX | H28: =SUM(H18:H27) -> 59.3 | I28: =SUM(I18:I27) -> 90.9 | J28: XX | L28: =SUM(L18:L27) -> 24.6 | M28: =SUM(M18:M27) -> 10163.3 | N28: 149 | O28: 13 | P28: =SUM(P18:P27) -> 0 | Q28: X | R28: =SUM(R18:R27) -> 6 | S28: =SUM(S18:S27) -> 2 | T28: 0 | U28: 0 | V28: XXX
A29: Mi | B29: =AVERAGE(B18:B27) -> 16.49 | C29: =AVERAGE(C18:C27) -> 20.65 | D29: 13.65 | F29: 76.2 | G29: 90.6 | H29: 5.93 | I29: XXX | J29: XX | L29: =L28/10 -> 2.46 | M29: =AVERAGE(M18:M27) -> 1016.33 | N29: =AVERAGE(N18:N27) -> 14.9 | O29: 1.3 | P29: =ROUND(AVERAGE(P18:P27),1) ->  | Q29: X | R29: XX | S29: XX | T29: XX | U29: XX | V29: =AVERAGE(V18:V27) -> 3.9
A30: 21. | B30: 15.4 | C30: 18.2 | D30: 12.5 | E30: - | F30: 85 | G30: 93 | H30: 7.2 | I30: 9.8 | J30: R | L30: . | M30: 1011.9 | N30: 14.4 | O30: 1 | R30: 1 | V30: 5
A31: 22. | B31: 10.7 | C31: 14.5 | D31: 8.4 | E31: - | F31: 70 | G31: 88 | H31: 7.3 | I31: 8 | J31: R | L31: 1.5 | M31: 1012.3 | N31: 9 | O31: 3 | R31: 1 | T31: 1 | V31: 6
A32: 23. | B32: 9.4 | C32: 12.8 | D32: 4.8 | E32: - | F32: 71 | G32: 88 | H32: 5.4 | I32: . | L32: 0.6 | M32: 1018.6 | N32: 7.6 | O32: 2 | V32: 5
A33: 24. | B33: 9.2 | C33: 14.8 | D33: 3.1 | E33: - | F33: 62 | G33: 85 | H33: 5.1 | I33: . | L33: 3.2 | M33: 1015.3 | N33: 6.5 | O33: 1 | V33: 5
A34: 25. | B34: 12.4 | C34: 15.7 | D34: 9.2 | E34: - | F34: 73 | G34: 83 | H34: 7.3 | I34: 0.2 | J34: R | L34: 0.6 | M34: 1015.9 | N34: 9.3 | O34: 2 | R34: 1 | V34: 5
A35: 26. | B35: 12.9 | C35: 14.4 | D35: 11.8 | E35: - | F35: 83 | G35: 91 | H35: 8 | I35: 3.3 | J35: R | L35: . | M35: 1021.4 | N35: 11.5 | O35: 2 | R35: 1 | V35: 5
A36: 27. | B36: 14.1 | C36: 18.6 | D36: 8.7 | E36: - | F36: 63 | G36: 88 | H36: 4.6 | I36: . | L36: 3.8 | M36: 1027.3 | N36: 12.1 | O36: 2 | V36: 4
A37: 28. | B37: 12.5 | C37: 20.3 | D37: 6.6 | E37: - | F37: 63 | G37: 88 | H37: 3.7 | I37: . | L37: 5.7 | M37: 1027.3 | N37: 10.3 | O37: 1 | V37: 4
A38: 29. | B38: 15.3 | C38: 22.7 | D38: 9.4 | E38: - | F38: 69 | G38: 88 | H38: 4.1 | I38: 0.2 | J38: R | L38: 5.4 | M38: 1024.4 | N38: 13.2 | O38: 1 | R38: 1 | V38: 3
A39: 30. | B39: 15.7 | C39: 19.4 | D39: 12.6 | E39: - | F39: 77 | G39: 91 | H39: 6.8 | I39: 6 | J39: R | L39: 0.1 | M39: 1024.5 | N39: 14.1 | O39: 1 | R39: 1 | V39: 2
A40: Su | B40: =SUM(B30:B39) -> 127.6 | C40: =SUM(C30:C39) -> 171.4 | D40: =SUM(D30:D39) -> 87.1 | E40: =SUM(E30:E39) -> 0 | F40: XXX | G40: =SUM(G30:G39) -> 883 | H40: =SUM(H30:H39) -> 59.5 | I40: =SUM(I30:I39) -> 27.5 | J40: XX | L40: =SUM(L30:L39) -> 20.9 | M40: =SUM(M30:M39) -> 10198.9 | N40: =SUM(N30:N39) -> 108 | O40: =SUM(O30:O39) -> 16 | P40: =SUM(P30:P39) -> 0 | Q40: X | R40: =SUM(R30:R39) -> 6 | S40: =SUM(S30:S39) -> 0 | T40: =SUM(T30:T39) -> 1 | U40: =SUM(U30:U39) -> 0 | V40: XXX
A41: Mi | B41: =AVERAGE(B30:B39) -> 12.76 | C41: =AVERAGE(C30:C39) -> 17.14 | D41: =AVERAGE(D30:D39) -> 8.71 | E41: =AVERAGE(E30:E39) ->  | F41: XXX | G41: =AVERAGE(G30:G39) -> 88.3 | H41: =AVERAGE(H30:H39) -> 5.95 | I41: XXX | J41: XX | L41: XXX | M41: =AVERAGE(M30:M39) -> 1019.89 | N41: =AVERAGE(N30:N39) -> 10.8 | O41: =AVERAGE(O30:O39) -> 1.6 | P41: =ROUND(AVERAGE(P30:P39),1) ->  | Q41: X | R41: XX | S41: XX | T41: XX | U41: XX | V41: =AVERAGE(V30:V39) -> 4.4
A42: MSu | B42: =SUM(B16+B28+B40) -> 453.4 | C42: =SUM(C16+C28+C40) -> 582.2 | D42: =SUM(D16+D28+D40) -> 350.4 | E42: =SUM(E16+E28+E40) -> 0 | F42: XXX | G42: XXX, | H42: =SUM(H16+H28+H40) -> 176.4 | I42: =SUM(I16+I28+I40) -> 138 | J42: XX | L42: =SUM(L16+L28+L40) -> 68.6 | M42: =SUM(M16+M28+M40) -> 30535.9 | N42: =SUM(N16+N28+N40) -> 397.2 | O42: XXX | P42: =SUM(P16+P28+P40) -> 0 | Q42: X | R42: =SUM(R16+R28+R40) -> 17 | S42: =SUM(S16+S28+S40) -> 5 | T42: =SUM(T16+T28+T40) -> 1 | U42: =SUM(U16+U28+U40) -> 0 | V42: XXX | W42: 8
A43: MMi | B43: =AVERAGE(B6:B15,B18:B27,B30:B39) -> 15.11333333 | C43: =AVERAGE(C6:C15,C18:C27,C30:C39) -> 19.40666667 | D43: =AVERAGE(D6:D15,D18:D27,D30:D39) -> 11.68 | E43: =AVERAGE(E6:E15,E18:E27,E30:E39) ->  | F43: XXX | G43: =AVERAGE(G6:G15,G18:G27,G30:G39) -> 89.06666667 | H43: =AVERAGE(H6:H15,H18:H27,H30:H39) -> 5.88 | I43: XXXXX | J43: XX | L43: XXXX | M43: =AVERAGE(M6:M15,M18:M27,M30:M39) -> 1017.863333 | N43: =AVERAGE(N6:N15,N18:N27,N30:N39) -> 13.24 | O43: =AVERAGE(O6:O15,O18:O27,O30:O39) -> 1.3 | P43: =ROUND(AVERAGE(P6:P15,P18:P27,P30:P39),1) ->  | Q43: X | R43: XX | S43: XX | T43: XX | U43: XX | V43: =AVERAGE(V17,V29,V41) -> 3.866666667
B45: Norm | C45: % v N.- | D45: Abw. | E45: Zahl der Tage | L45: Niederschlag mm | P45: Sonnensch.-dauer Std
B46: wert | C46: wert | D46: K | E46: Max.d.Lufttemp.°C | L46: >/= 0,1 | O46: =SUM(AE7:AE9) -> 17 | P46: ohne Sonne | V46: =SUM(AA17:AA19) -> 7
A47: TTT | B47: 14.3 | C47: XXXX | D47: =SUM(B43-B47) -> 0.8133333333 | E47: Tropentag/Hitzetag | I47: =SUM(AA7:AA9) -> 0 | L47: >/= 1,0 | O47: =SUM(AF7:AF9) -> 14 | P47: 0,1 bis 0,9 | V47: =SUM(AB17:AB19) -> 8
A48: RRR | B48: 50 | C48: =SUM(I42*100/B48) -> 276 | D48: XXXX | E48: Sommertag | I48: =SUM(AB7:AB9) -> 2 | L48: >/= 3,0 | O48: =SUM(AG7:AG9) -> 12 | P48: >/= 10,0 | V48: =SUM(AC17:AC19) -> 0
A49: sss | B49: 150 | C49: =SUM(L42*100/B49) -> 45.73333333 | D49: XXXX | E49: Eistag | I49: =SUM(AC7:AC9) -> 0 | L49: >/=10,0 | O49: =SUM(AH7:AH9) -> 3 | P49: Schneedecke cm
A50: astr. | D50: XXXX | E50: Polartag | I50: 0 | L50: >/= 20,0 | O50: 2 | P50: >/= 1 | V50: =SUM(AE17:AE19) -> 0
A51: mgl. | B51: 372 | C51: =SUM(L42*100/B51) -> 18.44086022 | D51: XXXX | E51: Min.d.Lufttemp.°C | L51: Rel. Luftfeuchte 14 Uhr | P51: >/= 3 | V51: =SUM(AF17:AF19) -> 0
A52: sss | D52: XXXX | E52: Frosttag | I52: =SUM(AA12:AA14) -> 0 | L52: >/=70% | O52: =SUM(AE12:AE14) -> 17 | P52: >/= 10 | V52: =SUM(AG17:AG19) -> 0
E53: Tropennacht | I53: 0 | L53: </=40% | O53: =SUM(AG12:AG14) -> 0
E56: Unter "Tage mit" sind die Angaben Bft 6 & Bft 8 nicht 10 min. - Mittel sonder 2,5 s - Werte.
E57: Wenn ein Wert auch mit einem 10 min. - Wert erreicht wird, erfolgt eine rote Markierung.
E58: Dies gilt rückwirkend auf November 2012.
F112: Tage mit Bft 6 /8 eigentlich in 10 min. - Mittel

Sheet Sichtst.
E1: Sichtweitenstatistik
B5: Wetterstation: Köttewitz | F5: Monat: | G5: September | K5: Jahr: | L5: 2014
A7: Dat. | B7: Nebeldauer | C7: Nebel | D7: Dunst | E7: Sicht | F7: Sicht | G7: Sicht | H7: Sicht
B8: in St. u. Min. | E8: mittel | F8: normal | G8: gut | H8: sehr gut
A9: 01. | B9: - | C9: - | D9: 1 | E9: 1 | F9: - | G9: - | H9: - | N9: =IF(ISNUMBER(B9),B9*24," ") ->  | O9: =IF(ISNUMBER(N9),IF(N9<1,1," ")," ") ->  | P9: =IF(ISNUMBER(N9),IF(N9<8,2," ")," ") ->  | Q9: =IF(ISNUMBER(N9),IF(N9<24,3," ")," ") ->  | R9: =MIN(O9:Q9) -> 0
A10: 02. | B10: - | C10: =IF(R10=1,1,"-") -> - | D10: 1 | E10: 1 | F10: - | G10: - | H10: - | R10: 0
A11: 03. | B11: - | C11: - | D11: 1 | E11: 1 | F11: - | G11: - | H11: - | R11: 0
A12: 04. | B12: - | C12: - | D12: 1 | E12: 1 | F12: 1 | G12: - | H12: - | R12: 0
A13: 05. | B13: - | C13: - | D13: - | E13: 1 | F13: 1 | G13: - | H13: - | R13: 0
A14: 06. | B14: - | C14: - | D14: - | E14: - | F14: 1 | G14: - | H14: - | R14: 0
A15: 07. | B15: - | C15: - | D15: - | E15: 1 | F15: 1 | G15: - | H15: - | R15: 0
A16: 08. | B16: - | C16: - | D16: - | E16: 1 | F16: - | G16: - | H16: - | R16: 0
A17: 09. | B17: - | C17: - | D17: - | E17: 1 | F17: 1 | G17: - | H17: - | R17: 0
A18: 10. | B18: - | C18: - | D18: 1 | E18: 1 | F18: 1 | G18: - | H18: - | R18: 0
A19: 11. | B19: - | C19: - | D19: 1 | E19: 1 | F19: 1 | G19: - | H19: - | R19: 0
A20: 12. | B20: - | C20: - | D20: 1 | E20: 1 | F20: - | G20: - | H20: - | R20: 0
A21: 13. | B21: - | C21: - | D21: 1 | E21: - | F21: - | G21: - | H21: - | R21: 0
A22: 14. | B22: - | C22: - | D22: 1 | E22: - | F22: - | G22: - | H22: - | R22: 0
A23: 15. | B23: - | C23: - | D23: 1 | E23: 1 | F23: 1 | G23: - | H23: - | R23: 0
A24: 16. | B24: - | C24: - | D24: - | E24: 1 | F24: 1 | G24: - | H24: - | R24: 0
A25: 17. | B25: - | C25: - | D25: - | E25: - | F25: 1 | G25: - | H25: - | R25: 0
A26: 18. | B26: - | C26: - | D26: - | E26: - | F26: 1 | G26: - | H26: - | R26: 0
A27: 19. | B27: - | C27: - | D27: 1 | E27: 1 | F27: 1 | G27: - | H27: - | R27: 0
A28: 20. | B28: - | C28: - | D28: 1 | E28: 1 | F28: 1 | G28: - | H28: - | R28: 0
A29: 21. | B29: - | C29: - | D29: - | E29: 1 | F29: 1 | G29: - | H29: - | R29: 0
A30: 22. | B30: - | C30: - | D30: - | E30: - | F30: 1 | G30: - | H30: - | R30: 0
A31: 23. | B31: - | C31: - | D31: - | E31: - | F31: 1 | G31: - | H31: - | R31: 0
A32: 24. | B32: - | C32: - | D32: - | E32: - | F32: 1 | G32: - | H32: - | R32: 0
A33: 25. | B33: - | C33: - | D33: - | E33: 1 | F33: 1 | G33: - | H33: - | R33: 0
A34: 26. | B34: - | C34: - | D34: 1 | E34: 1 | F34: - | G34: - | H34: - | R34: 0
A35: 27. | B35: - | C35: - | D35: - | E35: 1 | F35: 1 | G35: - | H35: - | R35: 0
A36: 28. | B36: - | C36: - | D36: - | E36: - | F36: 1 | G36: - | H36: -
A37: 29. | B37: - | C37: - | D37: - | E37: - | F37: 1 | G37: - | H37: -
A38: 30. | B38: - | C38: - | D38: - | E38: - | F38: 1 | G38: - | H38: -
A39: Su. | B39: =SUM(B9:B38) -> 00:00:00 | C39: 0 | D39: 13 | E39: 19 | F39: 22 | G39: 0 | H39: 0
B41: Anzahl der Nebeltage : | E41: =SUM(C39) -> 0
B42: Anzahl der Tage Sicht >= 50 km : | E42: =SUM(G39) -> 0

Sheet Monatsdiagramm
A1: Klimadiagramm | C1: Wetterstation Köttewitz | I1: (213 m ü. NHN)
A3: September 2014
C5: aktuell | D5: langj. Mittel | E5: Abw. vom lj. Mittel
B6: höchste Temperatur (°C): | C6: =MAX('Daten für Diagr.'!C2:C31) -> 27.2 | D6: am | E6: 2014-09-06
B7: mittlere Temperatur (°C): | C7: ='Daten für Diagr.'!B32 -> 15.10333333 | D7: =Kurztabelle!B47 -> 14.3 | E7: =C7-D7 -> 0.8033333333 | F7: K
B8: tiefste Temperatur (°C): | C8: =MIN('Daten für Diagr.'!D2:D31) -> 3.1 | D8: am | E8: 2014-09-24
B9: Niederschlagshöhe (mm): | C9: =Kurztabelle!I42 -> 138 | D9: =Kurztabelle!B48 -> 50 | E9: =100/D9*C9 -> 276 | F9: %
B10: Sonnenscheindauer (Std.)*: | C10: =Kurztabelle!L42 -> 68.6 | D10: =Kurztabelle!B49 -> 150 | E10: =100/D10*C10 -> 45.73333333 | F10: %
A66: *Die Wetterstation kann, durch geographische Hindernisse, nicht die maximal mögliche Sonnenscheindauer aufzeichnen. Es gilt ein Übergangsprozentsatz von: Dez 30 %; Okt/Nov & Jan/Feb 40 %; Mär 65 %; Apr & Sep 80 %; Mai - August 90 %.
A67: Diese Werte entsprechend annähernd 100 % (Normalwert Köttewitz). Nach 10 Jahren erfolgt die Umstellung des Prozentsatzes nach der örtlichen Aufzeichnung.

Sheet Daten für Diagr.
B1: Td | C1: Tmax | D1: Tmin | E1: RR | F1: Schnee | G1: Sonne | H1: Luftdr. | I1: MWT | J1: GWL | K1: Name | L1: Sonstiges
A2: 2014-09-01 | B2: 13.9 | C2: 16 | D2: 12.8 | E2: 3.3 | H2: 1017 | I2: 16.45 | J2: NEz | K2: H Jörge | L2: Von 20:30 Uhr - 23:59 Uhr Dunst (WW 10).
A3: 2014-09-02 | B3: 13.1 | C3: 13.9 | D3: 11.8 | E3: 4.2 | H3: 1020.4 | I3: 16.3 | L3: Von 09:00 Uhr - 10:49 Uhr; 12:10 Uhr - 12:29 Uhr mäßiger Regen (WW 63). Von 07:30 Uhr - 08:59 Uhr; 10:50 Uhr - 12:09 Uhr leichter Regen (WW 61). Von 02:20 Uhr - 04:59 Uhr leichter Regen, unterbrochen (WW 60). Von 17:00 Uhr - 17:49 Uhr mäßiger Sprühregen (WW 53). Von 00:00 Uhr - 12:29 Uhr; 17:00 Uhr - 17:49 Uhr Dunst (WW 10).
A4: 2014-09-03 | B4: 14 | C4: 17.6 | D4: 11.6 | H4: 1023.4 | I4: 16.15 | J4: NEa | L4: Von 20:50 Uhr - 23:59 Uhr leichter Dunst (WW 10).
A5: 2014-09-04 | B5: 15.7 | C5: 21.3 | D5: 10.8 | G5: 0.7 | H5: 1020.7 | I5: 16 | L5: Von 00:00 Uhr - 08:59 Uhr mäßiger Dunst (WW 10). Mäßig schwül.
A6: 2014-09-05 | B6: 19 | C6: 27.1 | D6: 12.3 | G6: 8.2 | H6: 1015.6 | I6: 15.85 | J6: SEz | K6: T Claudia | L6: Mäßig schwül.
A7: 2014-09-06 | B7: 19.8 | C7: 27.2 | D7: 14.2 | G7: 6.8 | H7: 1012.6 | I7: 15.7 | L7: Abends leichtes Ferngewitter (WW 17). Stark schwül.
A8: 2014-09-07 | B8: 17.6 | C8: 23.7 | D8: 13.9 | E8: 0.2 | G8: 4.2 | H8: 1013.4 | I8: 15.55 | J8: Wa | K8: H Helmuth | L8: Von 11:00 Uhr - 13:09 Uhr leichter Regenschauer (WW 80). Von 10:00 Uhr - 12:59 Uhr; 14:20 Uhr - Gegen 16:00 Uhr leichtes Ferngewitter (WW 17). Beginn des phänologischen Frühherbstes.
A9: 2014-09-08 | B9: 17.5 | C9: 21 | D9: 14.5 | E9: 9 | G9: 0.2 | H9: 1016.1 | I9: 15.4 | L9: Von 17:00 Uhr - 17:39 Uhr leichtes Gewitter mit Regen (WW 95). Von 16:30 Uhr - 16:39 Uhr mäßiger Regenschauer (WW 81). Von 16:00 Uhr - 16:29 Uhr leichter Regenschauer (WW 80).
A10: 2014-09-09 | B10: 16 | C10: 18.9 | D10: 12.5 | G10: 2.4 | H10: 1017.5 | I10: 15.25 | L10: Beginn des Laubfalls.
A11: 2014-09-10 | B11: 14.3 | C11: 17.6 | D11: 12.4 | E11: 2.9 | G11: 0.6 | H11: 1016.8 | I11: 15.1 | J11: NEz | K11: T Bigi
A12: 2014-09-11 | B12: 14 | C12: 18.3 | D12: 11.4 | E12: 16.6 | G12: 0.9 | H12: 1016 | I12: 14.95 | J12: SEz (Vb) | L12: Von 18:50 Uhr - 19:26 Uhr starker Regen (WW 65). Von 03:40 Uhr - 04:09 Uhr; 18:40 Uhr - 18:49 Uhr; 19:27 Uhr - 23:59 Uhr mäßiger Regen (WW 63). Von 04:10 Uhr - 05:39 Uhr; 18:00 Uhr - 18:39 Uhr leichter Regen (WW 61).
A13: 2014-09-12 | B13: 15.1 | C13: 16.7 | D13: 13 | E13: 4.9 | H13: 1015.2 | I13: 14.8 | L13: Von 00:00 Uhr - 00:49 Uhr; 02:50 Uhr - 03:49 Uhr mäßiger Regen (WW 63). Von 00:50 Uhr - 02:49 Uhr; 03:50 Uhr - 10:49 Uhr leichter Regen (WW 61). Von 10:50 Uhr - 14:59 Uhr; abends mäßiger Nieselregen (WW 53).
A14: 2014-09-13 | B14: 16.6 | C14: 18.4 | D14: 15.7 | E14: 9.6 | G14: 0.2 | H14: 1019.2 | I14: 14.65 | J14: HNFz | K14: H Helmuth | L14: Gegen 04:00 Uhr starker Regen (WW 65). In der Nacht starker Nieselregen (WW 55). Ganztags Nieselregen nicht näher definiert (WW 50 -55). Mäßig schwül.
A15: 2014-09-14 | B15: 15.8 | C15: 16.5 | D15: 14.9 | E15: 2.4 | H15: 1018.6 | I15: 14.5 | L15: Von 05:20 Uhr - 06:29 Uhr starker Regen WW 65). Gegen 10:00 Uhr mäßiger Regen (WW 63). Von 06:30 Uhr - 06:59 Uhr; Gegen 15:00 Uhr leichter Regen (WW 61). Zwischen 15:00 Uhr - Uhr mäßiger Nieselregen (WW 53). Leicht schwül.
A16: 2014-09-15 | B16: 18.2 | C16: 23.6 | D16: 15.5 | G16: 4.4 | H16: 1018 | I16: 14.35 | J16: HFa | L16: Stark schwül.
A17: 2014-09-16 | B17: 17.9 | C17: 23.7 | D17: 13.9 | G17: 4.9 | H17: 1017.9 | I17: 14.2 | K17: H Ingemar | L17: Mäßig schwül.
A18: 2014-09-17 | B18: 17.1 | C18: 23.2 | D18: 12.5 | G18: 6.3 | H18: 1016.3 | I18: 14.05 | L18: Leicht schwül.
A19: 2014-09-18 | B19: 16.8 | C19: 21.2 | D19: 12.6 | G19: 3.8 | H19: 1014.7 | I19: 13.9
A20: 2014-09-19 | B20: 16.8 | C20: 23.9 | D20: 12.5 | E20: 23.2 | G20: 2.3 | H20: 1014 | I20: 13.75 | J20: SWz | K20: T Elisabeth | L20: Von 17:01 Uhr - 18:35 Uhr leichtes Gewitter mit Regen (WW 95). Von 16:02 Uhr - 17:00 Uhr; 18:36 Uhr - 19:59 Uhr starker Regenschauer (WW 81).Von 15:41 Uhr - 16:01 Uhr; 20:00 Uhr - 20:59 Uhr leichter Regenschauer (WW 80). Von 15:29 Uhr - 16:09 Uhr leichtes Ferngewitter (WW 17). Leicht schwül.
A21: 2014-09-20 | B21: 16.6 | C21: 21 | D21: 14.5 | E21: 34.2 | G21: 1.8 | H21: 1013.4 | I21: 13.6 | J21: Wz | K21: T Lora | L21: Von 11:20 Uhr - 12:32 Uhr; 14:05 Uhr - 14:27 Uhr; 15:03 Uhr - 15:11 Uhr; 16:22 Uhr - 17:02 Uhr leichtes Gewitter mit Regen (WW 95). Von 12:33 Uhr - 12:38 Uhr leichter Regenschauer (WW 80). Von 12:33 Uhr - 14:04 Uhr; 14:28 Uhr - 14:55 Uhr; 15:42 Uhr - 16:15 Uhr Ferngewitter (WW 17). Mäßig schwül.
A22: 2014-09-21 | B22: 15.4 | C22: 18.2 | D22: 12.5 | E22: 9.8 | H22: 1011.9 | I22: 13.45 | K22: T Gudrun | L22: Von 19:00 Uhr - 19:39 Uhr starker Regenschauer (WW 81). Von 10:50 Uhr - 11:09 Uhr mäßiger Regen (WW 63). Von 10:30 Uhr - 10:49 Uhr; 11:10 Uhr - 12:19 Uhr; 17:30 Uhr - 18:59 Uhr leichter Regen (WW 61).
A23: 2014-09-22 | B23: 10.4 | C23: 14.5 | D23: 8.7 | E23: 8 | G23: 1.5 | H23: 1012.3 | I23: 13.3 | J23: NWz | L23: Von 12:20 Uhr - 12:49 Uhr; 16:10 Uhr - 16:29 Uhr starker Regenschauer (WW 81). Gegen 09:30 Uhr; 13:10 Uhr - 13:49 Uhr leichter Regenschauer (WW 80). Von 18:20 Uhr - 23:19 Uhr mäßiger Regen, unterbrochen (WW 62).
A24: 2014-09-23 | B24: 9.4 | C24: 12.8 | D24: 4.8 | G24: 0.6 | H24: 1018.6 | I24: 13.15 | J24: NWa | K24: H Josef | L24: Von 00:50 Uhr - 05:09 Uhr leichter Regen, unterbrochen (WW 60).
A25: 2014-09-24 | B25: 9.2 | C25: 14.8 | D25: 3.1 | G25: 3.2 | H25: 1015.3 | I25: 13
A26: 2014-09-25 | B26: 12.4 | C26: 15.7 | D26: 9.2 | E26: 0.2 | G26: 0.6 | H26: 1015.9 | I26: 12.85 | J26: Wa | K26: H Kieron | L26: Gegen 16:00 Uhr leichter Regen (WW 61).
A27: 2014-09-26 | B27: 12.9 | C27: 14.4 | D27: 11.8 | E27: 3.3 | H27: 1021.4 | I27: 12.7 | L27: Von 11:50 Uhr - 13:29 Uhr; 14:20 Uhr - 15:09 Uhr; 21:20 Uhr - 22:29 Uhr starker Nieselregen (WW 55).
A28: 2014-09-27 | B28: 14.1 | C28: 18.6 | D28: 8.7 | G28: 3.8 | H28: 1027.3 | I28: 12.55 | J28: HM
A29: 2014-09-28 | B29: 12.5 | C29: 20.3 | D29: 6.6 | G29: 5.7 | H29: 1027.3 | I29: 12.4 | L29: Von 01:30 Uhr - 06:49 Uhr Bodennebelschwaden (WW 11).
A30: 2014-09-29 | B30: 15.3 | C30: 22.7 | D30: 9.4 | E30: 0.2 | G30: 5.4 | H30: 1024.4 | I30: 12.25 | J30: Wa | L30: Mäßig schwül.
A31: 2014-09-30 | B31: 15.7 | C31: 19.4 | D31: 12.6 | E31: 6 | G31: 0.1 | H31: 1024.5 | I31: 12.1 | L31: Von 05:10 Uhr - 05:29 Uhr leichter Regen (WW 61). Leicht schwül.
A32: Durchschnitt | B32: =AVERAGE(B2:B31) -> 15.10333333 | C32: =AVERAGE(C2:C31) -> 19.40666667 | D32: =AVERAGE(D2:D31) -> 11.69 | E32: - | G32: =AVERAGE(G2:G31) -> 2.982608696 | H32: =AVERAGE(H2:H31) -> 1017.856667 | I32: =AVERAGE(I2:I31) -> 14.275
A33: Mittel | B33: 14.3 | E33: 50 | F33: - | G33: 150 | H33: 1016.6
A89: 1
A90: 2
A91: 3
A92: 4
A93: 5
A94: 6
A95: 7
A96: 8
A97: 9
A98: 10
A99: 11
A100: 12
A101: 13
A102: 14
A103: 15
A104: 16
A105: 17
A106: 18
A107: 19
A108: 20
A109: 21
A110: 22
A111: 23
A112: 24
A113: 25
A114: 26
A115: 27
A116: 28
A117: 29
A118: 30
A119: 31

Sheet Erdbodentem.
E1: Erdbodentemperatur
B5: Wetterstation: Köttewitz | F5: Monat: | G5: September | K5: Jahr: | L5: 2014
A7: Dat. | B7: 6 Uhr | C7: 7 Uhr | D7: 11 Uh | E7: 12 Uhr | F7: 19 Uhr | H7: NN | I7: 10 °C -
I8: Eindringtiefe
A9: 01. | B9: > 10 °C | D9: - | F9: - | H9: t | I9: > 1 m
A10: 02. | B10: > 10 °C | D10: - | F10: - | H10: t | I10: > 1 m
A11: 03. | B11: > 10 °C | D11: - | F11: - | H11: t | I11: > 1 m
A12: 04. | B12: > 10 °C | D12: - | F12: - | H12: n | I12: > 1 m
A13: 05. | B13: > 10 °C | D13: - | F13: - | H13: n | I13: > 1 m
A14: 06. | B14: > 10 °C | D14: - | F14: - | H14: n | I14: > 1 m
A15: 07. | B15: > 10 °C | D15: - | F15: - | H15: n | I15: > 1 m
A16: 08. | B16: > 10 °C | D16: - | F16: - | H16: t | I16: > 1 m
A17: 09. | B17: 16,8 °C/17,7 °C/18,2 °C | D17: - | F17: - | H17: n | I17: > 1 m
A18: 10. | B18: 15,6 °C/16,8 °C/18,3 °C | D18: - | F18: - | H18: t | I18: > 1 m
A19: 11. | B19: 15,1 °C/16,1 °C/17,6 °C | D19: - | F19: - | H19: t | I19: > 1 m
A20: 12. | B20: - | D20: - | F20: - | H20: t | I20: > 1 m
A21: 13. | B21: - | D21: - | F21: - | H21: t | I21: > 1 m
A22: 14. | B22: - | D22: - | F22: - | H22: t | I22: > 1 m
A23: 15. | B23: 17,0 °C/17,0 °C/17,5 °C | D23: - | F23: - | H23: n | I23: > 1 m
A24: 16. | B24: 16,5 °C/17,3 °C/17,9 °C | D24: - | F24: - | H24: n | I24: > 1 m
A25: 17. | B25: 15,3 °C/16,4 °C/17,6 °C | D25: - | F25: - | H25: h | I25: > 1 m
A26: 18. | B26: - | D26: - | F26: - | H26: n | I26: > 1 m
A27: 19. | B27: 14,5 °C/15,8 °C/17,4 °C | D27: - | F27: - | H27: t | I27: > 1 m
A28: 20. | B28: 15,4 °C/16,8 °C/17,8 °C | D28: - | F28: - | H28: t | I28: > 1 m
A29: 21. | B29: - | D29: - | F29: - | H29: t | I29: > 1 m
A30: 22. | B30: 14,4 °C/15,7 °C/17,5 °C | D30: - | F30: - | H30: t | I30: > 1 m
A31: 23. | B31: 12,7 °C/ 14,0 °C/17,8 °C | D31: - | F31: - | H31: n | I31: > 1 m
A32: 24. | B32: 9,5 °C/10,9 °C/16,2 °C | D32: - | F32: - | H32: n | I32: Ab 14 cm
A33: 25. | B33: 11,4 °C/12,6 °C/15,1 °C | D33: - | F33: - | H33: t | I33: > 1 m
A34: 26. | B34: > 10 °C | D34: - | F34: - | H34: t | I34: > 1 m
A35: 27. | B35: > 14 °C | D35: - | F35: - | H35: n | I35: > 1 m
A36: 28. | B36: - | D36: - | F36: - | H36: n | I36: > 1 m
A37: 29. | B37: 11,2 °C/12,9 °C/15,4 °C | D37: - | F37: - | H37: n | I37: > 1 m
A38: 30. | B38: 13,2 °C/14,5 °C/15,5 °C | D38: - | F38: - | H38: t | I38: > 1 m
B40: Temperatur - 10 cm/Temperatur - 20 cm/Temperatur -50 cm
